Workbook

Sheet Instructions
A1: Manufacturer | B1: KurbX
A2: File as | B2: K
A3: Product Code | B3: N
A4: CCTD Effective Date | B4: 11/1/25 (Updated)
A8: Enter your Company Name
B10: Click on "Index" to set the print area for the price list index
B11: Then you can send it to print
B14: Click on "Suggested Price List" to set the print area for Conestoga Tile's suggested price list.
B15: Then you can send it to print
B18: Enter your discount codes if you want a personal net cost sheet.
B20: Product
B21: Code | C21: Disc. %
B22: =+B3 -> N | C22: 0 | D22: This is a "NET" price list. 0% is the discount for this spreadsheet
B24: Click on "Your Cost" to set the print area for your personal cost report.
B25: Then you can send it to print
A28: Discount: | B28: To help establish your price list, enter the gross profit percent for each type of product.
B29: If you want to use Conestoga Tile's list price, leave them blank.
A31: Round Nickel: | B31: If you always want your price to round to the nearest nickel, enter "YES".
B32: If you enter "NO", it will NOT round to the nearest nickel.
A34: Ending Cents: | B34: If you always want your price to end with a certain cents, enter that cent value.
B35: If you leave it "blank" will NOT round to this cent value.
B37: Group | C37: GP Margin | D37: GP Margin % for | F37: Round Nickel | G37: add/subtract | H37: Ending Cents
B38: 1 | D38: Stocked Pans | F38: No | G38: 0
B39: 2 | D39: Non-Stock Pans | F39: No | G39: 0
B40: 3 | D40: Installation Pkg | F40: No | G40: 0
B41: 4 | D41: Drains | F41: No | G41: 0
B42: 5 | D42: Setting Materials | F42: No | G42: 0
B43: 6 | D43: 0 | F43: No | G43: 0
B44: 7 | D44: 0 | F44: No | G44: 0
A46: If you want to manually adjust your price list, hit "F5" and go to "Customer_Cost" to manually adjust pricing.
A47: You can enter a value in the column labeled "Adj." to change your price manually.
B49: Click on "Your Price Calculation" to set the print area for your personal cost calculation report.
B50: Then you can send it to print
B53: Click on "Your Price List" to set the print area for your personal price list.
B54: Then you can send it to print
H55: Yes
A57: If you have any questions on how to best use this spreadsheet, please feel free to contact
A58: Jim Vogel at (800) 422-6860, ext. 4201 or via e-mail at jimvogel@cctd.com

Sheet Index
F3: ="File '"&Instructions!B2&"' - "&Instructions!B1 -> File 'K' - KurbX
A6: ="Price List Index - "&Instructions!B4 -> Price List Index - 11/1/25 (Updated)
A11: Page | C11: Series / Product Type
A47: This price list is available electronically on an Excel spreadsheet at www.conestogatile.com/pricelists.
A49: The spreadsheet has many special features to assist you. Apply your discount to generate your net costs for your purchasing department. Apply your standard gross margin percentage or custom prices to generate your own custom price list for your showroom. Print out individual price list for each series that can be attached to the back of your sample boards for easy reference.

Sheet Price List
B1: Stocked Pans | E1: Size | G1: Item # | I1: Description | T1: =IF(Suggested="Yes",AB1,AH1) -> 0.05 | U1: EA | V1: =+Instructions!$B$3 -> N | X1: =+Instructions!$C$22 -> 0 | Y1: =ROUND($AB1*(1-X1)+0.004999,2) -> 0.05 | AA1: new | AB1: 0.05 | AC1: =+X1 -> 0 | AD1: 0.05 | AE1: =(AH1-AD1)/AH1 -> 0 | AG1: 1 | AH1: =SUM(AK1:AM1)+AF1 -> 0.05 | AK1: =ROUND(AD1/(1-VLOOKUP(AG1,Group,2,FALSE)),2) -> 0.05 | AL1: =IF(VLOOKUP(AG1,Group,5,FALSE)="YES",VLOOKUP(ROUND(ROUND(AK1,1)-AK1,2),Round,2,FALSE)+VLOOKUP(AG1,Group,6,FALSE),0) -> 0 | AM1: =IF(VLOOKUP(AG1,Group,7,FALSE)="",0,ROUND(AK1-0.04999,1)-AK1+AN1) -> 0 | AN1: =IF(VLOOKUP(AG1,Group,7,FALSE)="","",VLOOKUP(AG1,Group,7,FALSE)) ->  | AP1: X
B2: Non-Stock Pans | E2: Size | G2: Item # | I2: Description | T2: =IF(Suggested="Yes",AB2,AH2) -> 0.05 | U2: EA | V2: =+Instructions!$B$3 -> N | X2: =+Instructions!$C$22 -> 0 | Y2: 0.05 | AA2: new | AB2: 0.05 | AC2: 0 | AD2: 0.05 | AE2: 0 | AG2: 2 | AH2: 0.05 | AK2: 0.05 | AL2: 0 | AM2: 0 | AP2: X
B3: Installation Pkg | E3: Size | G3: Item # | I3: Description | T3: =IF(Suggested="Yes",AB3,AH3) -> 0.05 | U3: EA | V3: =+Instructions!$B$3 -> N | X3: =+Instructions!$C$22 -> 0 | Y3: =ROUND($AB3*(1-X3)+0.004999,2) -> 0.05 | AA3: new | AB3: 0.05 | AC3: =+X3 -> 0 | AD3: =+Y3 -> 0.05 | AE3: =(AH3-AD3)/AH3 -> 0 | AG3: 3 | AH3: =SUM(AK3:AM3)+AF3 -> 0.05 | AK3: =ROUND(AD3/(1-VLOOKUP(AG3,Group,2,FALSE)),2) -> 0.05 | AL3: =IF(VLOOKUP(AG3,Group,5,FALSE)="YES",VLOOKUP(ROUND(ROUND(AK3,1)-AK3,2),Round,2,FALSE)+VLOOKUP(AG3,Group,6,FALSE),0) -> 0 | AM3: =IF(VLOOKUP(AG3,Group,7,FALSE)="",0,ROUND(AK3-0.04999,1)-AK3+AN3) -> 0 | AN3: =IF(VLOOKUP(AG3,Group,7,FALSE)="","",VLOOKUP(AG3,Group,7,FALSE)) ->  | AP3: X
B4: Drains | E4: Size | G4: Item # | I4: Description | T4: 0.05 | U4: EA | V4: =+Instructions!$B$3 -> N | X4: =+Instructions!$C$22 -> 0 | Y4: 0.05 | AA4: new | AB4: 0.05 | AC4: 0 | AD4: 0.05 | AE4: 0 | AG4: 4 | AH4: 0.05 | AK4: 0.05 | AL4: 0 | AM4: 0 | AP4: X
B5: Setting Materials | E5: Size | G5: Item # | I5: Description | T5: 0.05 | U5: EA | V5: =+Instructions!$B$3 -> N | X5: =+Instructions!$C$22 -> 0 | Y5: 0.05 | AA5: new | AB5: 0.05 | AC5: 0 | AD5: 0.05 | AE5: 0 | AG5: 5 | AH5: 0.05 | AK5: 0.05 | AL5: 0 | AM5: 0 | AP5: X
B6: 0 | E6: Size | G6: Item # | I6: Description | T6: 0 | U6: EA | V6: =+Instructions!$B$3 -> N | X6: =+Instructions!$C$22 -> 0 | Y6: 0 | AA6: new | AB6: 0 | AC6: 0 | AD6: 0 | AG6: 6 | AH6: 0 | AK6: 0 | AL6: 0 | AM6: 0 | AP6: X
B7: 0 | E7: Size | G7: Item # | I7: Description | T7: 0 | U7: EA | V7: =+Instructions!$B$3 -> N | X7: =+Instructions!$C$22 -> 0 | Y7: 0 | AA7: new | AB7: 0 | AC7: 0 | AD7: 0 | AG7: 7 | AH7: 0 | AK7: 0 | AL7: 0 | AM7: 0 | AP7: X
B8: Format | R8: Stock | S8: a | T8: 1000 | U8: ABC | X8: 0.1 | Y8: 1000 | AA8: ABC | AB8: 1000 | AC8: 0.1 | AD8: 1000 | AE8: 0.1 | AF8: 10 | AH8: 1000 | AP8: X
AP9: X
P10: Price List | X10: Cust. Cost | AA10: Customer Cost Calculation | AP10: X
D11: Sizes & Shapes | P11: Full Carton | R11: Stock | S11: Note | T11: =IF(Suggested="Yes",AB11,AH11) -> Net Price | U11: U/M | V11: Code | X11: Disc. | Y11: Net | AA11: Chg | AB11: Net Price | AC11: Disc | AD11: Act. Cost | AE11: GP% | AF11: Adj. | AG11: Group | AH11: Price | AK11: Calc Price | AL11: .05 Round | AM11: Cents | AN11: Round to | AP11: X
AP12: X
O13: ="File '"&Instructions!B2&"' - "&Instructions!B1 -> File 'K' - KurbX | X13: Cost | AH13: Retail Price Calculations | AP13: X
U14: =+Instructions!B4 -> 11/1/25 (Updated) | AF14: =TODAY() -> 2025-11-03 | AP14: X
AP15: X
C16: ="Product Code '"&Instructions!B3&"'" -> Product Code 'N' | AH16: =IF(Instructions!$C$8="","",Instructions!$C$8) ->  | AP16: X
AP17: X
C18: Sizes & Shapes | R18: Stock | S18: Note | T18: =+T$11 -> Net Price | U18: U/M | V18: =+V$11 -> Code | X18: Disc. | Y18: Net | AA18: Chg | AB18: Net Price | AC18: =+AC$11 -> Disc | AD18: Act. Cost | AE18: GP% | AF18: Adj. | AG18: =+AG$11 -> Group | AH18: Price | AK18: Calc Price | AL18: .05 Round | AM18: Cents | AN18: Round to | AP18: X
C19: PRICING LISTED IS NET PRICING. TRADE DISCOUNTS DO NOT APPLY. | AP19: X
AP20: X
C21: Step 1: Choose a Shower Pan | AP21: X
AP22: X
C23: KurbX - Customizable Structural Shower Pans | S23: Item # Lookup: | T23: KUSHPAN
AP24: X
B25: Stocked Pans | E25: 60" x 36" | G25: SB6036-CD | J25: Center Drain | R25: Stock | T25: =IF(Suggested="Yes",AB25,AH25) -> 561.65 | U25: EA | V25: =+Instructions!$B$3 -> N | X25: =+Instructions!$C$22 -> 0 | Y25: =ROUND($AB25*(1-X25)+0.004999,2) -> 561.65 | AB25: 561.65 | AC25: =+X25 -> 0 | AD25: =+Y25 -> 561.65 | AE25: =(AH25-AD25)/AH25 -> 0 | AG25: 1 | AH25: =SUM(AK25:AM25)+AF25 -> 561.65 | AK25: =ROUND(AD25/(1-VLOOKUP(AG25,Group,2,FALSE)),2) -> 561.65 | AL25: =IF(VLOOKUP(AG25,Group,5,FALSE)="YES",VLOOKUP(ROUND(ROUND(AK25,1)-AK25,2),Round,2,FALSE)+VLOOKUP(AG25,Group,6,FALSE),0) -> 0 | AM25: =IF(VLOOKUP(AG25,Group,7,FALSE)="",0,ROUND(AK25-0.04999,1)-AK25+AN25) -> 0 | AN25: =IF(VLOOKUP(AG25,Group,7,FALSE)="","",VLOOKUP(AG25,Group,7,FALSE)) ->  | AP25: X
B26: Stocked Pans | E26: 60" x 36" | G26: SB6036-OD-TR | J26: Off-Set Drain | R26: Stock | T26: =IF(Suggested="Yes",AB26,AH26) -> 561.65 | U26: EA | V26: =+Instructions!$B$3 -> N | X26: =+Instructions!$C$22 -> 0 | Y26: =ROUND($AB26*(1-X26)+0.004999,2) -> 561.65 | AB26: 561.65 | AC26: =+X26 -> 0 | AD26: =+Y26 -> 561.65 | AE26: =(AH26-AD26)/AH26 -> 0 | AG26: 1 | AH26: =SUM(AK26:AM26)+AF26 -> 561.65 | AK26: =ROUND(AD26/(1-VLOOKUP(AG26,Group,2,FALSE)),2) -> 561.65 | AL26: =IF(VLOOKUP(AG26,Group,5,FALSE)="YES",VLOOKUP(ROUND(ROUND(AK26,1)-AK26,2),Round,2,FALSE)+VLOOKUP(AG26,Group,6,FALSE),0) -> 0 | AM26: =IF(VLOOKUP(AG26,Group,7,FALSE)="",0,ROUND(AK26-0.04999,1)-AK26+AN26) -> 0 | AN26: =IF(VLOOKUP(AG26,Group,7,FALSE)="","",VLOOKUP(AG26,Group,7,FALSE)) ->  | AP26: X
B27: Stocked Pans | E27: 48" x 48" | G27: SB4848-CD | J27: Center Drain | R27: Stock | T27: =IF(Suggested="Yes",AB27,AH27) -> 577 | U27: EA | V27: =+Instructions!$B$3 -> N | X27: =+Instructions!$C$22 -> 0 | Y27: =ROUND($AB27*(1-X27)+0.004999,2) -> 577 | AB27: 577 | AC27: =+X27 -> 0 | AD27: =+Y27 -> 577 | AE27: =(AH27-AD27)/AH27 -> 0 | AG27: 1 | AH27: =SUM(AK27:AM27)+AF27 -> 577 | AK27: =ROUND(AD27/(1-VLOOKUP(AG27,Group,2,FALSE)),2) -> 577 | AL27: =IF(VLOOKUP(AG27,Group,5,FALSE)="YES",VLOOKUP(ROUND(ROUND(AK27,1)-AK27,2),Round,2,FALSE)+VLOOKUP(AG27,Group,6,FALSE),0) -> 0 | AM27: =IF(VLOOKUP(AG27,Group,7,FALSE)="",0,ROUND(AK27-0.04999,1)-AK27+AN27) -> 0 | AN27: =IF(VLOOKUP(AG27,Group,7,FALSE)="","",VLOOKUP(AG27,Group,7,FALSE)) ->  | AP27: X
B28: Stocked Pans | E28: 60" x 48" | G28: SB6048-CD | J28: Center Drain | R28: Stock | T28: =IF(Suggested="Yes",AB28,AH28) -> 602.45 | U28: EA | V28: =+Instructions!$B$3 -> N | X28: =+Instructions!$C$22 -> 0 | Y28: =ROUND($AB28*(1-X28)+0.004999,2) -> 602.45 | AB28: 602.45 | AC28: 0 | AD28: 602.45 | AE28: 0 | AG28: 1 | AH28: 602.45 | AK28: 602.45 | AL28: 0 | AM28: 0 | AP28: X
B29: Stocked Pans | E29: 59" x 59" | G29: SB6060-CD | J29: Center Drain | R29: Stock | T29: =IF(Suggested="Yes",AB29,AH29) -> 703.25 | U29: EA | V29: =+Instructions!$B$3 -> N | X29: =+Instructions!$C$22 -> 0 | Y29: =ROUND($AB29*(1-X29)+0.004999,2) -> 703.25 | AB29: 703.25 | AC29: 0 | AD29: 703.25 | AE29: 0 | AG29: 1 | AH29: 703.25 | AK29: 703.25 | AL29: 0 | AM29: 0 | AP29: X
B30: Stocked Pans | E30: 71" x 47-1/4" | G30: SB7248-CD | J30: Center Drain | R30: Stock | T30: =IF(Suggested="Yes",AB30,AH30) -> 661.7 | U30: EA | V30: =+Instructions!$B$3 -> N | X30: =+Instructions!$C$22 -> 0 | Y30: =ROUND($AB30*(1-X30)+0.004999,2) -> 661.7 | AB30: 661.7 | AC30: =+X30 -> 0 | AD30: =+Y30 -> 661.7 | AE30: =(AH30-AD30)/AH30 -> 0 | AG30: 1 | AH30: =SUM(AK30:AM30)+AF30 -> 661.7 | AK30: =ROUND(AD30/(1-VLOOKUP(AG30,Group,2,FALSE)),2) -> 661.7 | AL30: =IF(VLOOKUP(AG30,Group,5,FALSE)="YES",VLOOKUP(ROUND(ROUND(AK30,1)-AK30,2),Round,2,FALSE)+VLOOKUP(AG30,Group,6,FALSE),0) -> 0 | AM30: =IF(VLOOKUP(AG30,Group,7,FALSE)="",0,ROUND(AK30-0.04999,1)-AK30+AN30) -> 0 | AN30: =IF(VLOOKUP(AG30,Group,7,FALSE)="","",VLOOKUP(AG30,Group,7,FALSE)) ->  | AP30: X
AP31: X
C32: ExtendIT - Shower Pan Filler | S32: Item # Lookup: | T32: KUSHPAN | AP32: X
AP33: X
B34: Stocked Pans | E34: 3" x 48" | G34: 3-ExtendIT-48 | J34: Extend-It Mini Pitch Filler (2 Pack) | R34: Stock | T34: =IF(Suggested="Yes",AB34,AH34) -> 30.3 | U34: EA | V34: =+Instructions!$B$3 -> N | X34: =+Instructions!$C$22 -> 0 | Y34: =ROUND($AB34*(1-X34)+0.004999,2) -> 30.3 | AB34: 30.3 | AC34: =+X34 -> 0 | AD34: =+Y34 -> 30.3 | AE34: =(AH34-AD34)/AH34 -> 0 | AG34: 1 | AH34: =SUM(AK34:AM34)+AF34 -> 30.3 | AK34: =ROUND(AD34/(1-VLOOKUP(AG34,Group,2,FALSE)),2) -> 30.3 | AL34: =IF(VLOOKUP(AG34,Group,5,FALSE)="YES",VLOOKUP(ROUND(ROUND(AK34,1)-AK34,2),Round,2,FALSE)+VLOOKUP(AG34,Group,6,FALSE),0) -> 0 | AM34: =IF(VLOOKUP(AG34,Group,7,FALSE)="",0,ROUND(AK34-0.04999,1)-AK34+AN34) -> 0 | AN34: =IF(VLOOKUP(AG34,Group,7,FALSE)="","",VLOOKUP(AG34,Group,7,FALSE)) ->  | AP34: X
AP35: X
C36: KurbIT - Low Profile Curbs | S36: Item # Lookup: | T36: KUSHPAN | AP36: X
AP37: X
B38: Non-Stock Pans | E38: 24" | G38: KurbIT-24 | J38: Shower Curb + 2 spacers | T38: =IF(Suggested="Yes",AB38,AH38) -> 22.35 | U38: EA | V38: =+Instructions!$B$3 -> N | X38: =+Instructions!$C$22 -> 0 | Y38: =ROUND($AB38*(1-X38)+0.004999,2) -> 22.35 | AB38: 22.35 | AC38: =+X38 -> 0 | AD38: =+Y38 -> 22.35 | AE38: =(AH38-AD38)/AH38 -> 0 | AG38: 2 | AH38: =SUM(AK38:AM38)+AF38 -> 22.35 | AK38: =ROUND(AD38/(1-VLOOKUP(AG38,Group,2,FALSE)),2) -> 22.35 | AL38: =IF(VLOOKUP(AG38,Group,5,FALSE)="YES",VLOOKUP(ROUND(ROUND(AK38,1)-AK38,2),Round,2,FALSE)+VLOOKUP(AG38,Group,6,FALSE),0) -> 0 | AM38: =IF(VLOOKUP(AG38,Group,7,FALSE)="",0,ROUND(AK38-0.04999,1)-AK38+AN38) -> 0 | AN38: =IF(VLOOKUP(AG38,Group,7,FALSE)="","",VLOOKUP(AG38,Group,7,FALSE)) ->  | AP38: X
B39: Non-Stock Pans | E39: 36" | G39: KurbIT-36 | J39: Shower Curb + 2 spacers | T39: 34.05 | U39: EA | V39: =+Instructions!$B$3 -> N | X39: =+Instructions!$C$22 -> 0 | Y39: 34.05 | AB39: 34.05 | AC39: 0 | AD39: 34.05 | AE39: 0 | AG39: 2 | AH39: 34.05 | AK39: 34.05 | AL39: 0 | AM39: 0 | AP39: X
B40: Stocked Pans | E40: 36" Kit | G40: KurbIT-36-COV | J40: 36" Shower Curb w/ 2 SeeLIT Covers + 2 spacers | R40: Stock | S40: a | T40: 63.15 | U40: EA | V40: =+Instructions!$B$3 -> N | X40: =+Instructions!$C$22 -> 0 | Y40: 63.15 | AB40: 63.15 | AC40: 0 | AD40: 63.15 | AE40: 0 | AG40: 1 | AH40: 63.15 | AK40: 63.15 | AL40: 0 | AM40: 0 | AP40: X
B41: Stocked Pans | E41: 48" Kit | G41: KurbIT-48-COV | J41: 24" + 24" Shower Curbs w/ 2 SeeLIT Covers + 4 spacers | R41: Stock | S41: a | T41: 70.35 | U41: EA | V41: =+Instructions!$B$3 -> N | X41: =+Instructions!$C$22 -> 0 | Y41: 70.35 | AB41: 70.35 | AC41: 0 | AD41: 70.35 | AE41: 0 | AG41: 1 | AH41: 70.35 | AK41: 70.35 | AL41: 0 | AM41: 0 | AP41: X
B42: Stocked Pans | E42: 60" Kit | G42: KurbIT-60-COV | J42: 24" + 36" Shower Curbs w/ 2 SeeLIT Covers + 4 spacers | R42: Stock | S42: a | T42: 77.55 | U42: EA | V42: =+Instructions!$B$3 -> N | X42: =+Instructions!$C$22 -> 0 | Y42: 77.55 | AB42: 77.55 | AC42: 0 | AD42: 77.55 | AE42: 0 | AG42: 1 | AH42: 77.55 | AK42: 77.55 | AL42: 0 | AM42: 0 | AP42: X
B43: Non-Stock Pans | E43: 72" Kit | G43: KurbIT-72-COV | J43: 36" + 36" Shower Curbs w/ 2 SeeLIT Covers + 4 spacers | R43: Stock | S43: a | T43: 105.05 | U43: EA | V43: =+Instructions!$B$3 -> N | X43: =+Instructions!$C$22 -> 0 | Y43: 105.05 | AB43: 105.05 | AC43: 0 | AD43: 105.05 | AE43: 0 | AG43: 2 | AH43: 105.05 | AK43: 105.05 | AL43: 0 | AM43: 0 | AP43: X
AP44: X
D45: Notes: | E45: a) Also includes 1 tube construction adhesive and 2 internal corners. | AP45: X
C47: Step 2: Choose an Installation Package | AP47: X
AP48: X
C49: Installation Package | S49: Item # Lookup: | T49: KUINSTA
AP50: X
B51: Installation Pkg | E51: PVC Kit | G51: IP-1-PVC | J51: Wood Installation Kit w/ Drain Support | R51: Stock | S51: a | T51: =IF(Suggested="Yes",AB51,AH51) -> 172.95 | U51: EA | V51: =+Instructions!$B$3 -> N | X51: =+Instructions!$C$22 -> 0 | Y51: =ROUND($AB51*(1-X51)+0.004999,2) -> 172.95 | AB51: 172.95 | AC51: =+X51 -> 0 | AD51: =+Y51 -> 172.95 | AE51: =(AH51-AD51)/AH51 -> 0 | AG51: 3 | AH51: =SUM(AK51:AM51)+AF51 -> 172.95 | AK51: =ROUND(AD51/(1-VLOOKUP(AG51,Group,2,FALSE)),2) -> 172.95 | AL51: =IF(VLOOKUP(AG51,Group,5,FALSE)="YES",VLOOKUP(ROUND(ROUND(AK51,1)-AK51,2),Round,2,FALSE)+VLOOKUP(AG51,Group,6,FALSE),0) -> 0 | AM51: =IF(VLOOKUP(AG51,Group,7,FALSE)="",0,ROUND(AK51-0.04999,1)-AK51+AN51) -> 0 | AN51: =IF(VLOOKUP(AG51,Group,7,FALSE)="","",VLOOKUP(AG51,Group,7,FALSE)) ->  | AP51: X
B52: Installation Pkg | E52: PVC Kit | G52: IP-2-PVC | J52: Wood Installation Kit (underneath accessible plumbing) | R52: Stock | S52: b | T52: =IF(Suggested="Yes",AB52,AH52) -> 71.95 | U52: EA | V52: =+Instructions!$B$3 -> N | X52: =+Instructions!$C$22 -> 0 | Y52: 71.95 | AB52: 71.95 | AC52: 0 | AD52: 71.95 | AE52: 0 | AG52: 3 | AH52: 71.95 | AK52: =ROUND(AD52/(1-VLOOKUP(AG52,Group,2,FALSE)),2) -> 71.95 | AL52: =IF(VLOOKUP(AG52,Group,5,FALSE)="YES",VLOOKUP(ROUND(ROUND(AK52,1)-AK52,2),Round,2,FALSE)+VLOOKUP(AG52,Group,6,FALSE),0) -> 0 | AM52: =IF(VLOOKUP(AG52,Group,7,FALSE)="",0,ROUND(AK52-0.04999,1)-AK52+AN52) -> 0 | AN52: =IF(VLOOKUP(AG52,Group,7,FALSE)="","",VLOOKUP(AG52,Group,7,FALSE)) ->  | AP52: X
B53: Installation Pkg | E53: PVC Kit | G53: IP-3-PVC | J53: Wood or Concrete Installation Kit for New Construction | R53: Stock | S53: c | T53: =IF(Suggested="Yes",AB53,AH53) -> 29.2 | U53: EA | V53: =+Instructions!$B$3 -> N | X53: =+Instructions!$C$22 -> 0 | Y53: 29.2 | AB53: 29.2 | AC53: 0 | AD53: 29.2 | AE53: 0 | AG53: 3 | AH53: 29.2 | AK53: =ROUND(AD53/(1-VLOOKUP(AG53,Group,2,FALSE)),2) -> 29.2 | AL53: =IF(VLOOKUP(AG53,Group,5,FALSE)="YES",VLOOKUP(ROUND(ROUND(AK53,1)-AK53,2),Round,2,FALSE)+VLOOKUP(AG53,Group,6,FALSE),0) -> 0 | AM53: =IF(VLOOKUP(AG53,Group,7,FALSE)="",0,ROUND(AK53-0.04999,1)-AK53+AN53) -> 0 | AN53: =IF(VLOOKUP(AG53,Group,7,FALSE)="","",VLOOKUP(AG53,Group,7,FALSE)) ->  | AP53: X
AP54: X
B55: Installation Pkg | E55: ABS Kit | G55: IP-1-ABS | J55: Wood Installation Kit w/ Drain Support | S55: a | T55: =IF(Suggested="Yes",AB55,AH55) -> 172.95 | U55: EA | V55: =+Instructions!$B$3 -> N | X55: =+Instructions!$C$22 -> 0 | Y55: 172.95 | AB55: 172.95 | AC55: 0 | AD55: 172.95 | AE55: 0 | AG55: 3 | AH55: 172.95 | AK55: =ROUND(AD55/(1-VLOOKUP(AG55,Group,2,FALSE)),2) -> 172.95 | AL55: =IF(VLOOKUP(AG55,Group,5,FALSE)="YES",VLOOKUP(ROUND(ROUND(AK55,1)-AK55,2),Round,2,FALSE)+VLOOKUP(AG55,Group,6,FALSE),0) -> 0 | AM55: =IF(VLOOKUP(AG55,Group,7,FALSE)="",0,ROUND(AK55-0.04999,1)-AK55+AN55) -> 0 | AN55: =IF(VLOOKUP(AG55,Group,7,FALSE)="","",VLOOKUP(AG55,Group,7,FALSE)) ->  | AP55: X
B56: Installation Pkg | E56: ABS Kit | G56: IP-2-ABS | J56: Wood Installation Kit (underneath accessible plumbing) | S56: b | T56: =IF(Suggested="Yes",AB56,AH56) -> 71.95 | U56: EA | V56: =+Instructions!$B$3 -> N | X56: =+Instructions!$C$22 -> 0 | Y56: 71.95 | AB56: 71.95 | AC56: 0 | AD56: 71.95 | AE56: 0 | AG56: 3 | AH56: 71.95 | AK56: =ROUND(AD56/(1-VLOOKUP(AG56,Group,2,FALSE)),2) -> 71.95 | AL56: =IF(VLOOKUP(AG56,Group,5,FALSE)="YES",VLOOKUP(ROUND(ROUND(AK56,1)-AK56,2),Round,2,FALSE)+VLOOKUP(AG56,Group,6,FALSE),0) -> 0 | AM56: =IF(VLOOKUP(AG56,Group,7,FALSE)="",0,ROUND(AK56-0.04999,1)-AK56+AN56) -> 0 | AN56: =IF(VLOOKUP(AG56,Group,7,FALSE)="","",VLOOKUP(AG56,Group,7,FALSE)) ->  | AP56: X
B57: Installation Pkg | E57: ABS Kit | G57: IP-3-ABS | J57: Wood or Concrete Installation Kit for New Construction | S57: c | T57: =IF(Suggested="Yes",AB57,AH57) -> 29.2 | U57: EA | V57: =+Instructions!$B$3 -> N | X57: =+Instructions!$C$22 -> 0 | Y57: 29.2 | AB57: 29.2 | AC57: 0 | AD57: 29.2 | AE57: 0 | AG57: 3 | AH57: 29.2 | AK57: =ROUND(AD57/(1-VLOOKUP(AG57,Group,2,FALSE)),2) -> 29.2 | AL57: =IF(VLOOKUP(AG57,Group,5,FALSE)="YES",VLOOKUP(ROUND(ROUND(AK57,1)-AK57,2),Round,2,FALSE)+VLOOKUP(AG57,Group,6,FALSE),0) -> 0 | AM57: =IF(VLOOKUP(AG57,Group,7,FALSE)="",0,ROUND(AK57-0.04999,1)-AK57+AN57) -> 0 | AN57: =IF(VLOOKUP(AG57,Group,7,FALSE)="","",VLOOKUP(AG57,Group,7,FALSE)) ->  | AP57: X
AP58: X
D59: Notes: | E59: a) Wood Installation Kit w/ Drain Support - Installation on wood substrates when there is NO plumbing access from underneath. | AP59: X
E60: - 1 Proprietary drain support block | K60: - 6 10-oz tubes of approved construction adhesive
E61: - 2 Drain support cleats | K61: - 20 Coated deck screws
E62: - 1 Drain Waste Connector | K62: - 1 2" driver bit
E63: - 1 Mini tube of pure silicone
E64: b) Wood Installation Kit - Installation on wood substrates when there IS plumbing access from underneath.
E65: - 1 Drain Waste Connector | K65: - 4 10-oz tubes of approved construction adhesive | AP65: X
E66: - 1 Mini tube of pure silicone | K66: - 20 Coated deck screws
K67: - 1 2" driver bit
E68: c) Wood or Concrete Installation Kit for New Construction
E69: - 1 Drain Waste Connector | K69: - 20 Coated deck screws (Note: Use tap cons for concrete installations - not provided)
E70: - 1 Mini tube of pure silicone | K70: - 1 2" driver bit
AP71: X
C72: Step 3: Choose a Drain Assembly | AP72: X
AP73: X
C74: KurbX - 4" Square Drain Assemblies | S74: Item # Lookup: | T74: KUSHDRA
AP75: X
D76: Grid Pattern Design:
AP77: X
B78: Drains | E78: 4" x 4" | G78: GP-100-BS | J78: Brushed Stainless Steel | R78: Stock | T78: =IF(Suggested="Yes",AB78,AH78) -> 151.3 | U78: EA | V78: =+Instructions!$B$3 -> N | X78: =+Instructions!$C$22 -> 0 | Y78: =ROUND($AB78*(1-X78)+0.004999,2) -> 151.3 | AB78: 151.3 | AC78: =+X78 -> 0 | AD78: =+Y78 -> 151.3 | AE78: =(AH78-AD78)/AH78 -> 0 | AG78: 4 | AH78: =SUM(AK78:AM78)+AF78 -> 151.3 | AK78: =ROUND(AD78/(1-VLOOKUP(AG78,Group,2,FALSE)),2) -> 151.3 | AL78: =IF(VLOOKUP(AG78,Group,5,FALSE)="YES",VLOOKUP(ROUND(ROUND(AK78,1)-AK78,2),Round,2,FALSE)+VLOOKUP(AG78,Group,6,FALSE),0) -> 0 | AM78: =IF(VLOOKUP(AG78,Group,7,FALSE)="",0,ROUND(AK78-0.04999,1)-AK78+AN78) -> 0 | AN78: =IF(VLOOKUP(AG78,Group,7,FALSE)="","",VLOOKUP(AG78,Group,7,FALSE)) ->  | AP78: X
B79: Drains | E79: 4" x 4" | G79: GP-200-CH | J79: Chrome | R79: Stock | T79: 151.3 | U79: EA | V79: =+Instructions!$B$3 -> N | X79: =+Instructions!$C$22 -> 0 | Y79: 151.3 | AB79: 151.3 | AC79: 0 | AD79: 151.3 | AE79: 0 | AG79: 4 | AH79: 151.3 | AK79: 151.3 | AL79: 0 | AM79: 0 | AP79: X
B80: Drains | E80: 4" x 4" | G80: GP-300-ORB | J80: Oil Rubbed Bronze | R80: Stock | T80: 225.4 | U80: EA | V80: =+Instructions!$B$3 -> N | X80: =+Instructions!$C$22 -> 0 | Y80: 225.4 | AB80: 225.4 | AC80: 0 | AD80: 225.4 | AE80: 0 | AG80: 4 | AH80: 225.4 | AK80: 225.4 | AL80: 0 | AM80: 0 | AP80: X
B81: Drains | E81: 4" x 4" | G81: GP-400-MB | J81: Matte Black | R81: Stock | T81: 225.4 | U81: EA | V81: =+Instructions!$B$3 -> N | X81: =+Instructions!$C$22 -> 0 | Y81: 225.4 | AB81: 225.4 | AC81: 0 | AD81: 225.4 | AE81: 0 | AG81: 4 | AH81: 225.4 | AK81: 225.4 | AL81: 0 | AM81: 0 | AP81: X
AP82: X
D83: Notes: | E83: The Grid Pattern Design Drain Assemblies are being discontinued by Kurbx and are available while supplies last. | AP83: X
AP84: X
D85: Lattice Pattern Design (Polycarbonate/Frameless):
AP86: X
B87: Drains | E87: 4" x 4" | G87: LAT-1-BS | J87: Brushed Stainless Steel | T87: =IF(Suggested="Yes",AB87,AH87) -> 141.05 | U87: EA | V87: =+Instructions!$B$3 -> N | X87: =+Instructions!$C$22 -> 0 | Y87: =ROUND($AB87*(1-X87)+0.004999,2) -> 141.05 | AB87: 141.05 | AC87: =+X87 -> 0 | AD87: =+Y87 -> 141.05 | AE87: =(AH87-AD87)/AH87 -> 0 | AG87: 4 | AH87: =SUM(AK87:AM87)+AF87 -> 141.05 | AK87: =ROUND(AD87/(1-VLOOKUP(AG87,Group,2,FALSE)),2) -> 141.05 | AL87: =IF(VLOOKUP(AG87,Group,5,FALSE)="YES",VLOOKUP(ROUND(ROUND(AK87,1)-AK87,2),Round,2,FALSE)+VLOOKUP(AG87,Group,6,FALSE),0) -> 0 | AM87: =IF(VLOOKUP(AG87,Group,7,FALSE)="",0,ROUND(AK87-0.04999,1)-AK87+AN87) -> 0 | AN87: =IF(VLOOKUP(AG87,Group,7,FALSE)="","",VLOOKUP(AG87,Group,7,FALSE)) ->  | AP87: X
B88: Drains | E88: 4" x 4" | G88: LAT-2-CH | J88: Chrome | T88: 153.4 | U88: EA | V88: =+Instructions!$B$3 -> N | X88: =+Instructions!$C$22 -> 0 | Y88: 153.4 | AB88: 153.4 | AC88: 0 | AD88: 153.4 | AE88: 0 | AG88: 4 | AH88: 153.4 | AK88: 153.4 | AL88: 0 | AM88: 0 | AP88: X
B89: Drains | E89: 4" x 4" | G89: LAT-3-ORB | J89: Oil Rubbed Bronze | T89: 202.8 | U89: EA | V89: =+Instructions!$B$3 -> N | X89: =+Instructions!$C$22 -> 0 | Y89: 202.8 | AB89: 202.8 | AC89: 0 | AD89: 202.8 | AE89: 0 | AG89: 4 | AH89: 202.8 | AK89: 202.8 | AL89: 0 | AM89: 0 | AP89: X
B90: Drains | E90: 4" x 4" | G90: LAT-4-MB | J90: Matte Black | T90: =IF(Suggested="Yes",AB90,AH90) -> 223.4 | U90: EA | V90: =+Instructions!$B$3 -> N | X90: =+Instructions!$C$22 -> 0 | Y90: =ROUND($AB90*(1-X90)+0.004999,2) -> 223.4 | AB90: 223.4 | AC90: =+X90 -> 0 | AD90: =+Y90 -> 223.4 | AE90: =(AH90-AD90)/AH90 -> 0 | AG90: 4 | AH90: =SUM(AK90:AM90)+AF90 -> 223.4 | AK90: =ROUND(AD90/(1-VLOOKUP(AG90,Group,2,FALSE)),2) -> 223.4 | AL90: =IF(VLOOKUP(AG90,Group,5,FALSE)="YES",VLOOKUP(ROUND(ROUND(AK90,1)-AK90,2),Round,2,FALSE)+VLOOKUP(AG90,Group,6,FALSE),0) -> 0 | AM90: =IF(VLOOKUP(AG90,Group,7,FALSE)="",0,ROUND(AK90-0.04999,1)-AK90+AN90) -> 0 | AN90: =IF(VLOOKUP(AG90,Group,7,FALSE)="","",VLOOKUP(AG90,Group,7,FALSE)) ->  | AP90: X
B91: Drains | E91: 4" x 4" | G91: LAT-5-MBB | J91: Modern Brushed Brass | T91: 215.15 | U91: EA | V91: =+Instructions!$B$3 -> N | X91: =+Instructions!$C$22 -> 0 | Y91: 215.15 | AB91: 215.15 | AC91: 0 | AD91: 215.15 | AE91: 0 | AG91: 4 | AH91: 215.15 | AK91: 215.15 | AL91: 0 | AM91: 0 | AP91: X
AP92: X
C93: continued on next page | AP93: X
C94: KurbX - 4" Square Drain Assemblies - continued | S94: Item # Lookup: | T94: KUSHDRA
AP95: X
D96: Bar Pattern Design (Polycarbonate/Frameless):
AP97: X
B98: Drains | E98: 4" x 4" | G98: BAR-10-SN | J98: Satin Nickel | T98: =IF(Suggested="Yes",AB98,AH98) -> 215.15 | U98: EA | V98: =+Instructions!$B$3 -> N | X98: =+Instructions!$C$22 -> 0 | Y98: =ROUND($AB98*(1-X98)+0.004999,2) -> 215.15 | AB98: 215.15 | AC98: =+X98 -> 0 | AD98: =+Y98 -> 215.15 | AE98: =(AH98-AD98)/AH98 -> 0 | AG98: 4 | AH98: =SUM(AK98:AM98)+AF98 -> 215.15 | AK98: =ROUND(AD98/(1-VLOOKUP(AG98,Group,2,FALSE)),2) -> 215.15 | AL98: =IF(VLOOKUP(AG98,Group,5,FALSE)="YES",VLOOKUP(ROUND(ROUND(AK98,1)-AK98,2),Round,2,FALSE)+VLOOKUP(AG98,Group,6,FALSE),0) -> 0 | AM98: =IF(VLOOKUP(AG98,Group,7,FALSE)="",0,ROUND(AK98-0.04999,1)-AK98+AN98) -> 0 | AN98: =IF(VLOOKUP(AG98,Group,7,FALSE)="","",VLOOKUP(AG98,Group,7,FALSE)) ->  | AP98: X
B99: Drains | E99: 4" x 4" | G99: BAR-20-PCH | J99: Polished Chrome | T99: 178.1 | U99: EA | V99: =+Instructions!$B$3 -> N | X99: =+Instructions!$C$22 -> 0 | Y99: 178.1 | AB99: 178.1 | AC99: 0 | AD99: 178.1 | AE99: 0 | AG99: 4 | AH99: 178.1 | AK99: 178.1 | AL99: 0 | AM99: 0 | AP99: X
B100: Drains | E100: 4" x 4" | G100: BAR-30-PN | J100: Polished Nickel | T100: 215.15 | U100: EA | V100: =+Instructions!$B$3 -> N | X100: =+Instructions!$C$22 -> 0 | Y100: 215.15 | AB100: 215.15 | AC100: 0 | AD100: 215.15 | AE100: 0 | AG100: 4 | AH100: 215.15 | AK100: 215.15 | AL100: 0 | AM100: 0 | AP100: X
B101: Drains | E101: 4" x 4" | G101: BAR-40-MB | J101: Matte Black | T101: 239.85 | U101: EA | V101: =+Instructions!$B$3 -> N | X101: =+Instructions!$C$22 -> 0 | Y101: 239.85 | AB101: 239.85 | AC101: 0 | AD101: 239.85 | AE101: 0 | AG101: 4 | AH101: 239.85 | AK101: 239.85 | AL101: 0 | AM101: 0 | AP101: X
B102: Drains | E102: 4" x 4" | G102: BAR-50-SB | J102: Satin Brass | T102: 239.85 | U102: EA | V102: =+Instructions!$B$3 -> N | X102: =+Instructions!$C$22 -> 0 | Y102: 239.85 | AB102: 239.85 | AC102: 0 | AD102: 239.85 | AE102: 0 | AG102: 4 | AH102: 239.85 | AK102: 239.85 | AL102: 0 | AM102: 0 | AP102: X
B103: Drains | E103: 4" x 4" | G103: BAR-60-SO | J103: Riser Kit (Includes Riser, Construction Cover & Grate Key) | S103: a | T103: =IF(Suggested="Yes",AB103,AH103) -> 29.9 | U103: EA | V103: =+Instructions!$B$3 -> N | X103: =+Instructions!$C$22 -> 0 | Y103: =ROUND($AB103*(1-X103)+0.004999,2) -> 29.9 | AA103: YES | AB103: 29.9 | AC103: =+X103 -> 0 | AD103: =+Y103 -> 29.9 | AE103: =(AH103-AD103)/AH103 -> 0 | AG103: 4 | AH103: =SUM(AK103:AM103)+AF103 -> 29.9 | AK103: =ROUND(AD103/(1-VLOOKUP(AG103,Group,2,FALSE)),2) -> 29.9 | AL103: =IF(VLOOKUP(AG103,Group,5,FALSE)="YES",VLOOKUP(ROUND(ROUND(AK103,1)-AK103,2),Round,2,FALSE)+VLOOKUP(AG103,Group,6,FALSE),0) -> 0 | AM103: =IF(VLOOKUP(AG103,Group,7,FALSE)="",0,ROUND(AK103-0.04999,1)-AK103+AN103) -> 0 | AN103: =IF(VLOOKUP(AG103,Group,7,FALSE)="","",VLOOKUP(AG103,Group,7,FALSE)) ->  | AP103: X
B104: Drains | E104: 4" x 4" | G104: BAR-GO-SO-XX | J104: Special Order Color (Grate Only) | S104: b | T104: 289.3 | U104: EA | V104: =+Instructions!$B$3 -> N | X104: =+Instructions!$C$22 -> 0 | Y104: 289.3 | AA104: new | AB104: 289.3 | AC104: 0 | AD104: 289.3 | AE104: 0 | AG104: 4 | AH104: 289.3 | AK104: 289.3 | AL104: 0 | AM104: 0 | AP104: X
B105: Drains | E105: 4" x 4" | G105: TEMP-GRATE-1 | J105: Temporary Drain Grate for Special Order Finishes | S105: c | T105: =IF(Suggested="Yes",AB105,AH105) -> 62.8 | U105: EA | V105: =+Instructions!$B$3 -> N | X105: =+Instructions!$C$22 -> 0 | Y105: =ROUND($AB105*(1-X105)+0.004999,2) -> 62.8 | AB105: 62.8 | AC105: =+X105 -> 0 | AD105: =+Y105 -> 62.8 | AE105: =(AH105-AD105)/AH105 -> 0 | AG105: 4 | AH105: =SUM(AK105:AM105)+AF105 -> 62.8 | AK105: =ROUND(AD105/(1-VLOOKUP(AG105,Group,2,FALSE)),2) -> 62.8 | AL105: =IF(VLOOKUP(AG105,Group,5,FALSE)="YES",VLOOKUP(ROUND(ROUND(AK105,1)-AK105,2),Round,2,FALSE)+VLOOKUP(AG105,Group,6,FALSE),0) -> 0 | AM105: =IF(VLOOKUP(AG105,Group,7,FALSE)="",0,ROUND(AK105-0.04999,1)-AK105+AN105) -> 0 | AN105: =IF(VLOOKUP(AG105,Group,7,FALSE)="","",VLOOKUP(AG105,Group,7,FALSE)) ->  | AP105: X
AP106: X
D107: Notes: | E107: a) Needed for Special Order Jaclo Color Grate. The special order grate must be ordered separately. | AP107: X
E108: b) The "XX" in the item number must be replaced with Jaclo color code. See this link for available colors, codes, | AP108: X
E109: and approximate lead times: | I109: https://www.conestogatile.com/wp-content/uploads/2025/11/KurbXfinishes-5.pdf | AP109: X
E110: c) May be needed due to an extended lead time on a special order color grate. | AP110: X
AP111: X
C112: KurbX - Shelf | S112: Item # Lookup: | T112: KUSHSHE
AP113: X
D114: Lattice Pattern Shelf (Stainless Steel):
AP115: X
B116: Drains | E116: 10" x 10" x 13-3/4" | G116: LAT-SHLF-1-BS | J116: Brushed Stainless Steel | T116: =IF(Suggested="Yes",AB116,AH116) -> 112.25 | U116: EA | V116: =+Instructions!$B$3 -> N | X116: =+Instructions!$C$22 -> 0 | Y116: =ROUND($AB116*(1-X116)+0.004999,2) -> 112.25 | AB116: 112.25 | AC116: =+X116 -> 0 | AD116: =+Y116 -> 112.25 | AE116: =(AH116-AD116)/AH116 -> 0 | AG116: 4 | AH116: =SUM(AK116:AM116)+AF116 -> 112.25 | AK116: =ROUND(AD116/(1-VLOOKUP(AG116,Group,2,FALSE)),2) -> 112.25 | AL116: =IF(VLOOKUP(AG116,Group,5,FALSE)="YES",VLOOKUP(ROUND(ROUND(AK116,1)-AK116,2),Round,2,FALSE)+VLOOKUP(AG116,Group,6,FALSE),0) -> 0 | AM116: =IF(VLOOKUP(AG116,Group,7,FALSE)="",0,ROUND(AK116-0.04999,1)-AK116+AN116) -> 0 | AN116: =IF(VLOOKUP(AG116,Group,7,FALSE)="","",VLOOKUP(AG116,Group,7,FALSE)) ->  | AP116: X
B117: Drains | E117: 10" x 10" x 13-3/4" | G117: LAT-SHLF-2-CH | J117: Polished Chrome | T117: 120.45 | U117: EA | V117: =+Instructions!$B$3 -> N | X117: =+Instructions!$C$22 -> 0 | Y117: 120.45 | AB117: 120.45 | AC117: 0 | AD117: 120.45 | AE117: 0 | AG117: 4 | AH117: 120.45 | AK117: 120.45 | AL117: 0 | AM117: 0 | AP117: X
B118: Drains | E118: 10" x 10" x 13-3/4" | G118: LAT-SHLF-3-ORB | J118: Oil Rubbed Bronze | T118: 198.7 | U118: EA | V118: =+Instructions!$B$3 -> N | X118: =+Instructions!$C$22 -> 0 | Y118: 198.7 | AB118: 198.7 | AC118: 0 | AD118: 198.7 | AE118: 0 | AG118: 4 | AH118: 198.7 | AK118: 198.7 | AL118: 0 | AM118: 0 | AP118: X
B119: Drains | E119: 10" x 10" x 13-3/4" | G119: LAT-SHLF-4-MB | J119: Matte Black | T119: 182.2 | U119: EA | V119: =+Instructions!$B$3 -> N | X119: =+Instructions!$C$22 -> 0 | Y119: 182.2 | AB119: 182.2 | AC119: 0 | AD119: 182.2 | AE119: 0 | AG119: 4 | AH119: 182.2 | AK119: 182.2 | AL119: 0 | AM119: 0 | AP119: X
B120: Drains | E120: 10" x 10" x 13-3/4" | G120: LAT-SHLF-5-MBB | J120: Modern Brushed Brass | T120: 169.85 | U120: EA | V120: =+Instructions!$B$3 -> N | X120: =+Instructions!$C$22 -> 0 | Y120: 169.85 | AB120: 169.85 | AC120: 0 | AD120: 169.85 | AE120: 0 | AG120: 4 | AH120: 169.85 | AK120: 169.85 | AL120: 0 | AM120: 0 | AP120: X
AP121: X
C122: Step 4: Choose a Waterproofing Kit | AP122: X
AP123: X
C124: SeeLIT - Waterproofing Kits | S124: Item # Lookup: | T124: KUWPKIT
AP125: X
B126: Setting Materials | E126: Kit | G126: SeeLIT-MIN-500 | J126: Waterproofing Kit | M126: (approx. coverage is 30 sf) | R126: Stock | S126: a,c | T126: =IF(Suggested="Yes",AB126,AH126) -> 175.8 | U126: EA | V126: =+Instructions!$B$3 -> N | X126: =+Instructions!$C$22 -> 0 | Y126: =ROUND($AB126*(1-X126)+0.004999,2) -> 175.8 | AB126: 175.8 | AC126: =+X126 -> 0 | AD126: =+Y126 -> 175.8 | AE126: =(AH126-AD126)/AH126 -> 0 | AG126: 5 | AH126: =SUM(AK126:AM126)+AF126 -> 175.8 | AK126: =ROUND(AD126/(1-VLOOKUP(AG126,Group,2,FALSE)),2) -> 175.8 | AL126: =IF(VLOOKUP(AG126,Group,5,FALSE)="YES",VLOOKUP(ROUND(ROUND(AK126,1)-AK126,2),Round,2,FALSE)+VLOOKUP(AG126,Group,6,FALSE),0) -> 0 | AM126: =IF(VLOOKUP(AG126,Group,7,FALSE)="",0,ROUND(AK126-0.04999,1)-AK126+AN126) -> 0 | AN126: =IF(VLOOKUP(AG126,Group,7,FALSE)="","",VLOOKUP(AG126,Group,7,FALSE)) ->  | AP126: X
B127: Setting Materials | E127: Kit | G127: SeeLIT-MAX-1000 | J127: Waterproofing Kit | M127: (approx. coverage is 120 sf) | R127: Stock | S127: b,c | T127: 330.9 | U127: EA | V127: =+Instructions!$B$3 -> N | X127: =+Instructions!$C$22 -> 0 | Y127: =ROUND($AB127*(1-X127)+0.004999,2) -> 330.9 | AB127: 330.9 | AC127: =+X127 -> 0 | AD127: =+Y127 -> 330.9 | AE127: =(AH127-AD127)/AH127 -> 0 | AG127: 5 | AH127: =SUM(AK127:AM127)+AF127 -> 330.9 | AK127: =ROUND(AD127/(1-VLOOKUP(AG127,Group,2,FALSE)),2) -> 330.9 | AL127: =IF(VLOOKUP(AG127,Group,5,FALSE)="YES",VLOOKUP(ROUND(ROUND(AK127,1)-AK127,2),Round,2,FALSE)+VLOOKUP(AG127,Group,6,FALSE),0) -> 0 | AM127: =IF(VLOOKUP(AG127,Group,7,FALSE)="",0,ROUND(AK127-0.04999,1)-AK127+AN127) -> 0 | AN127: =IF(VLOOKUP(AG127,Group,7,FALSE)="","",VLOOKUP(AG127,Group,7,FALSE)) ->  | AP127: X
AP128: X
D129: Notes: | E129: a) MIN-500 Waterproofing Kit includes: | AP129: X
E130: - 1/2 gallon Liquid waterproofing
E131: - 25' x 6" Joint tape
E132: b) MAX-1000 Waterproofing Kit includes:
E133: - 2 gallons Liquid waterproofing
E134: - 75' x 6" Joint tape
E135: c) All Kits include:
E136: - 2 Internal corners | K136: - 1 Pair of gloves
E137: - 2 External corners | K137: - 1 Paint roller cover
E138: - 1 Tube adhesive/sealant | K138: - 1 Paint roller handle
E139: - 1 4" disposable brush
C141: SeeLIT - Waterproofing Liquids | S141: Item # Lookup: | T141: KUWPLIQ
AP142: X
B143: Setting Materials | E143: 1/2 Gallon | G143: SeeLIT-SOLO-1/2GAL | K143: Waterproofing Liquid Pail | R143: Stock | T143: =IF(Suggested="Yes",AB143,AH143) -> 76.1 | U143: EA | V143: =+Instructions!$B$3 -> N | X143: =+Instructions!$C$22 -> 0 | Y143: =ROUND($AB143*(1-X143)+0.004999,2) -> 76.1 | AB143: 76.1 | AC143: =+X143 -> 0 | AD143: =+Y143 -> 76.1 | AE143: =(AH143-AD143)/AH143 -> 0 | AG143: 5 | AH143: =SUM(AK143:AM143)+AF143 -> 76.1 | AK143: =ROUND(AD143/(1-VLOOKUP(AG143,Group,2,FALSE)),2) -> 76.1 | AL143: =IF(VLOOKUP(AG143,Group,5,FALSE)="YES",VLOOKUP(ROUND(ROUND(AK143,1)-AK143,2),Round,2,FALSE)+VLOOKUP(AG143,Group,6,FALSE),0) -> 0 | AM143: =IF(VLOOKUP(AG143,Group,7,FALSE)="",0,ROUND(AK143-0.04999,1)-AK143+AN143) -> 0 | AN143: =IF(VLOOKUP(AG143,Group,7,FALSE)="","",VLOOKUP(AG143,Group,7,FALSE)) ->  | AP143: X
B144: Setting Materials | E144: 2 Gallon | G144: SeeLIT-SOLO-2GAL | K144: Waterproofing Liquid Pail | R144: Stock | T144: =IF(Suggested="Yes",AB144,AH144) -> 198.25 | U144: EA | V144: =+Instructions!$B$3 -> N | X144: =+Instructions!$C$22 -> 0 | Y144: =ROUND($AB144*(1-X144)+0.004999,2) -> 198.25 | AB144: 198.25 | AC144: =+X144 -> 0 | AD144: =+Y144 -> 198.25 | AE144: =(AH144-AD144)/AH144 -> 0 | AG144: 5 | AH144: =SUM(AK144:AM144)+AF144 -> 198.25 | AK144: =ROUND(AD144/(1-VLOOKUP(AG144,Group,2,FALSE)),2) -> 198.25 | AL144: =IF(VLOOKUP(AG144,Group,5,FALSE)="YES",VLOOKUP(ROUND(ROUND(AK144,1)-AK144,2),Round,2,FALSE)+VLOOKUP(AG144,Group,6,FALSE),0) -> 0 | AM144: =IF(VLOOKUP(AG144,Group,7,FALSE)="",0,ROUND(AK144-0.04999,1)-AK144+AN144) -> 0 | AN144: =IF(VLOOKUP(AG144,Group,7,FALSE)="","",VLOOKUP(AG144,Group,7,FALSE)) ->  | AP144: X
AP145: X
C146: SeeLIT - Waterproofing Accessories | S146: Item # Lookup: | T146: KUWP
AP147: X
B148: Setting Materials | E148: 25' x 6" | G148: SeeLIT-JT-25 | K148: Joint Tape | R148: Stock | T148: =IF(Suggested="Yes",AB148,AH148) -> 26.75 | U148: EA | V148: =+Instructions!$B$3 -> N | X148: =+Instructions!$C$22 -> 0 | Y148: =ROUND($AB148*(1-X148)+0.004999,2) -> 26.75 | AB148: 26.75 | AC148: =+X148 -> 0 | AD148: =+Y148 -> 26.75 | AE148: =(AH148-AD148)/AH148 -> 0 | AG148: 5 | AH148: =SUM(AK148:AM148)+AF148 -> 26.75 | AK148: =ROUND(AD148/(1-VLOOKUP(AG148,Group,2,FALSE)),2) -> 26.75 | AL148: =IF(VLOOKUP(AG148,Group,5,FALSE)="YES",VLOOKUP(ROUND(ROUND(AK148,1)-AK148,2),Round,2,FALSE)+VLOOKUP(AG148,Group,6,FALSE),0) -> 0 | AM148: =IF(VLOOKUP(AG148,Group,7,FALSE)="",0,ROUND(AK148-0.04999,1)-AK148+AN148) -> 0 | AN148: =IF(VLOOKUP(AG148,Group,7,FALSE)="","",VLOOKUP(AG148,Group,7,FALSE)) ->  | AP148: X
B149: Setting Materials | E149: 75' x 6" | G149: SeeLIT-JT-75 | K149: Joint Tape | T149: =IF(Suggested="Yes",AB149,AH149) -> 51.45 | U149: EA | V149: =+Instructions!$B$3 -> N | X149: =+Instructions!$C$22 -> 0 | Y149: =ROUND($AB149*(1-X149)+0.004999,2) -> 51.45 | AB149: 51.45 | AC149: =+X149 -> 0 | AD149: =+Y149 -> 51.45 | AE149: =(AH149-AD149)/AH149 -> 0 | AG149: 5 | AH149: =SUM(AK149:AM149)+AF149 -> 51.45 | AK149: =ROUND(AD149/(1-VLOOKUP(AG149,Group,2,FALSE)),2) -> 51.45 | AL149: =IF(VLOOKUP(AG149,Group,5,FALSE)="YES",VLOOKUP(ROUND(ROUND(AK149,1)-AK149,2),Round,2,FALSE)+VLOOKUP(AG149,Group,6,FALSE),0) -> 0 | AM149: =IF(VLOOKUP(AG149,Group,7,FALSE)="",0,ROUND(AK149-0.04999,1)-AK149+AN149) -> 0 | AN149: =IF(VLOOKUP(AG149,Group,7,FALSE)="","",VLOOKUP(AG149,Group,7,FALSE)) ->  | AP149: X
B150: Setting Materials | E150: 2-pack | G150: SeeLIT-INT-2 | K150: Internal Corner | R150: Stock | T150: =IF(Suggested="Yes",AB150,AH150) -> 16.05 | U150: EA | V150: =+Instructions!$B$3 -> N | X150: =+Instructions!$C$22 -> 0 | Y150: =ROUND($AB150*(1-X150)+0.004999,2) -> 16.05 | AB150: 16.05 | AC150: =+X150 -> 0 | AD150: =+Y150 -> 16.05 | AE150: =(AH150-AD150)/AH150 -> 0 | AG150: 5 | AH150: =SUM(AK150:AM150)+AF150 -> 16.05 | AK150: =ROUND(AD150/(1-VLOOKUP(AG150,Group,2,FALSE)),2) -> 16.05 | AL150: =IF(VLOOKUP(AG150,Group,5,FALSE)="YES",VLOOKUP(ROUND(ROUND(AK150,1)-AK150,2),Round,2,FALSE)+VLOOKUP(AG150,Group,6,FALSE),0) -> 0 | AM150: =IF(VLOOKUP(AG150,Group,7,FALSE)="",0,ROUND(AK150-0.04999,1)-AK150+AN150) -> 0 | AN150: =IF(VLOOKUP(AG150,Group,7,FALSE)="","",VLOOKUP(AG150,Group,7,FALSE)) ->  | AP150: X
B151: Setting Materials | E151: 2-pack | G151: SeeLIT-EXT-2 | K151: External Corner | R151: Stock | T151: 16.05 | U151: EA | V151: =+Instructions!$B$3 -> N | X151: =+Instructions!$C$22 -> 0 | Y151: 16.05 | AB151: 16.05 | AC151: 0 | AD151: 16.05 | AE151: 0 | AG151: 5 | AH151: 16.05 | AK151: 16.05 | AL151: 0 | AM151: 0 | AP151: X
C165: This price list is available electronically on an Excel spreadsheet at www.conestogatile.com/pricelists. | AP165: X
AP166: X
C167: The spreadsheet has many special features to assist you. Apply your discount to generate your net costs for your purchasing department. Apply your Premium gross margin percentage or custom prices to generate your own custom price list for your showroom. Print out individual price list for each series that can be attached to the back of your sample boards for easy reference. | AP167: X
AP168: X
A169: X | B169: X | C169: X | D169: X | E169: X | F169: X | G169: X | H169: X | I169: X | K169: X | L169: X | M169: X | N169: X | O169: X | P169: X | Q169: X | R169: X | S169: X | T169: X | U169: X | V169: X | W169: X | X169: X | Y169: X | Z169: X | AA169: X | AB169: X | AC169: X | AD169: X | AE169: X | AF169: X | AG169: X | AH169: X | AI169: X | AJ169: X | AK169: X | AL169: X | AM169: X | AN169: X | AO169: X | AP169: X
D171: $.05 Round Matrix
D172: -0.04 | E172: 0.01
D173: -0.03 | E173: 0.02
D174: -0.02 | E174: 0.03
D175: -0.01 | E175: -0.01
D176: 0 | E176: 0
D177: 0.01 | E177: 0.01
D178: 0.02 | E178: 0.02
D179: 0.03 | E179: 0.03
D180: 0.04 | E180: -0.01
D181: 0.05 | E181: 0

Sheet Websites
A1: Easy Access Website links
A3: ConestogaTile's Website | B3: www.conestogatile.com
A5: Manufacturer's Home Page | B5: https://kurbx.com/
A8: Product | B8: Direct Website Link

Sheet Changes
A1: Date
A2: Announced | B2: Series | C2: Description
A4: New Products
A5: 2025-10-21 | B5: KurbX - 4" Square Drain Assemblies | C5: Bar Pattern and Lattice Pattern Frameless Drains added as well as a Lattice Pattern Shelf.
A6: 2025-10-21 | B6: SeeLIT - Waterproofing Accessories | C6: SeeLIT-JT-25, 25' x 6" Joint Tape and SeeLIT-JT-75, 75' x 6" Joint Tape added.
A12: Discontinued Products
A13: 2025-10-21 | B13: KurbIT - Low Profile Curbs | C13: SeeLIT-COVERS, SeeLIT Curb Covers (Right-handed + Left-handed)
A14: 2025-10-21 | B14: SeeLIT - Waterproofing Accessories | C14: SeeLIT-JT-27, 27' Joint Tape and SeeLIT-JT-82, 82' Joint Tape only.
A15: 2025-10-21 | B15: KurbX - 4" Square Drain Assemblies | C15: Grid Pattern Design 4" Square Drain Assemblies in all colors.
A19: Changes
